bitfinex/quotes_BTCUSD_20241003
["timestamp","ask_amount","ask_price","bid_price","bid_amount"]
[1727946663368,0.00443814,60459.0,60458.0,0.96952281]
[1727946663768,0.24828066,60470.0,60469.0,0.165373]
[1727946663826,0.24828066,60470.0,60469.0,0.64095164]
[1727946664064,0.24828066,60477.0,60476.0,0.165354]
[1727946664315,0.24828066,60477.0,60476.0,0.64423898]
[1727946664588,0.24828066,60484.0,60483.0,0.265335]
[1727946664839,0.24828066,60484.0,60483.0,0.42852171]
[1727946665089,0.165308,60493.0,60486.0,0.165324]
[1727946665315,0.24828066,60487.0,60484.0,0.330664]
[1727946665559,0.165311,60492.0,60486.0,0.165327]
[1727946665807,0.001017,60499.0,60484.0,0.165332]
[1727946665808,0.165318,60490.0,60484.0,0.165332]
[1727946666017,0.165311,60492.0,60486.0,0.165326]
[1727946666231,0.330618,60493.0,60485.0,0.16533]
[1727946666483,0.41360266,60488.0,60481.0,0.1]
[1727946666752,0.41360266,60488.0,60480.0,0.330684]
[1727946666753,0.165323,60488.0,60480.0,0.330686]
[1727946666993,0.330635,60490.0,60478.0,0.24828066]
[1727946667177,0.330623,60492.0,60478.0,0.24828066]
[1727946667408,0.165327,60487.0,60484.0,0.014]
[1727946667634,0.165328,60486.0,60484.0,0.014]
[1727946667865,0.19123559,60491.0,60483.0,0.165333]
[1727946668091,0.330591,60498.0,60490.0,0.165316]
[1727946668319,0.330591,60498.0,60487.0,0.330646]
[1727946668320,0.41440066,60495.0,60489.0,0.165317]
[1727946668554,0.000817,60495.0,60484.0,0.16318671]
[1727946668787,0.000817,60495.0,60494.0,0.165305]
[1727946669014,0.000817,60495.0,60485.0,0.16318671]
[1727946669015,0.000817,60495.0,60489.0,0.330637]
[1727946669264,0.000817,60495.0,60490.0,0.330631]
[1727946669509,0.000817,60495.0,60491.0,0.330626]
[1727946669725,0.000817,60495.0,60492.0,0.330621]
[1727946670070,0.000817,60495.0,60494.0,0.005]
[1727946670469,0.000817,60495.0,60494.0,0.170305]
[1727946671054,0.000817,60495.0,60494.0,0.43349171]
[1727946671303,0.000817,60495.0,60494.0,0.106]
[1727946671525,0.000817,60495.0,60494.0,0.006]
[1727946671810,0.000817,60495.0,60494.0,0.171305]
[1727946672293,0.166119,60495.0,60494.0,0.011]
[1727946672749,0.000817,60495.0,60494.0,0.011]
[1727946672969,0.000817,60495.0,60494.0,0.176305]
[1727946673717,0.000817,60495.0,60494.0,0.33949171]
[1727946673932,0.000817,60495.0,60494.0,0.011]
[1727946675331,0.166119,60495.0,60494.0,0.011]
[1727946675636,0.02673252,60495.0,60494.0,0.011]
[1727946675848,0.19203452,60495.0,60494.0,0.011]
[1727946676070,0.35522123,60495.0,60494.0,0.011]
[1727946676514,0.35522123,60495.0,60482.0,0.24828066]
[1727946676515,0.165335,60483.0,60482.0,0.24828066]
[1727946676723,0.4493275,60483.0,60482.0,0.24828066]
[1727946676954,0.330666,60484.0,60472.0,0.00817227]
[1727946676955,0.330666,60484.0,60477.0,0.165351]
[1727946677197,0.330666,60484.0,60477.0,0.3307]
[1727946677198,0.165333,60484.0,60477.0,0.3307]
[1727946677414,0.165333,60484.0,60479.0,0.165346]
[1727946677640,0.53227316,60505.0,60480.0,0.16318671]
[1727946677852,0.24828066,60490.0,60484.0,0.330663]
[1727946678069,0.02591817,60498.0,60494.0,0.165305]
[1727946678719,0.001817,60495.0,60494.0,0.001]
[1727946678933,0.001817,60495.0,60487.0,0.24828066]
[1727946679150,0.001817,60495.0,60488.0,0.16318671]
[1727946679471,0.001817,60495.0,60490.0,0.165314]
[1727946679472,0.168121,60495.0,60490.0,0.165314]
[1727946679671,0.168121,60495.0,60491.0,0.165312]
[1727946679672,0.000817,60495.0,60491.0,0.165312]
[1727946679879,0.001817,60495.0,60489.0,0.330634]
[1727946680099,0.2839925,60493.0,60486.0,0.330653]
[1727946680287,0.2839925,60493.0,60489.0,0.165318]
[1727946680531,0.2839925,60493.0,60486.0,0.330653]
[1727946680532,0.165313,60492.0,60487.0,0.165323]
[1727946680749,0.000817,60495.0,60487.0,0.24828066]
[1727946680962,0.001817,60495.0,60494.0,0.165305]
[1727946681417,0.165306,60494.0,60485.0,0.1]
[1727946681648,0.165306,60494.0,60489.0,0.165318]
[1727946681864,0.000817,60495.0,60487.0,0.011]
[1727946681865,0.001,60492.0,60487.0,0.011]
[1727946682140,0.4493145,60488.0,60487.0,0.011]
[1727946683016,0.4493145,60488.0,60476.0,0.24828066]
[1727946683017,0.330691,60480.0,60476.0,0.24828066]
[1727946683262,0.4493445,60477.0,60476.0,0.24828066]
[1727946683486,0.4493445,60477.0,60469.0,0.24828066]
[1727946683487,0.165371,60470.0,60469.0,0.24828066]
[1727946683711,0.165365,60473.0,60469.0,0.24828066]
[1727946683926,0.165365,60473.0,60466.0,0.165379]
[1727946683927,0.02592247,60477.0,60471.0,0.330736]
[1727946684134,0.24828066,60474.0,60458.0,0.04929523]
[1727946684353,0.02592247,60477.0,60468.0,0.165374]
[1727946684577,0.02592247,60477.0,60459.0,0.16318671]
[1727946684578,0.165359,60475.0,60467.0,0.165376]
[1727946684801,0.02592247,60477.0,60467.0,0.16318671]
[1727946685054,0.02592247,60477.0,60473.0,0.16536]
[1727946685259,0.24828066,60479.0,60470.0,0.330742]
[1727946685490,0.24828066,60479.0,60471.0,0.16318671]
[1727946685846,0.24828066,60479.0,60473.0,0.496084]
[1727946685988,0.02592196,60484.0,60481.0,0.165339]
[1727946686214,0.165331,60485.0,60479.0,0.165344]
[1727946686480,0.165328,60486.0,60480.0,0.165341]
[1727946686736,0.165328,60486.0,60468.0,0.24828066]
[1727946686737,0.165347,60479.0,60474.0,0.165358]
[1727946687056,0.165344,60480.0,60475.0,0.24828066]
[1727946687192,0.2839925,60483.0,60473.0,0.330723]
[1727946687193,0.330683,60481.0,60473.0,0.330723]
[1727946687434,0.330666,60484.0,60477.0,0.16535]
[1727946687663,0.24828066,60487.0,60473.0,0.49390971]
[1727946687664,0.165341,60481.0,60476.0,0.165353]
[1727946687904,0.002,60479.0,60476.0,0.165353]
[1727946688129,0.002,60479.0,60474.0,0.009]
[1727946688130,0.16535,60478.0,60474.0,0.009]
[1727946688413,0.001,60479.0,60474.0,0.17436]
[1727946688773,0.001,60479.0,60478.0,0.165349]
[1727946689412,0.001,60481.0,60478.0,0.165349]
[1727946689649,0.001,60479.0,60478.0,0.165349]
[1727946690617,0.002,60479.0,60478.0,0.009]
[1727946690882,0.001,60479.0,60478.0,0.009]
[1727946691308,0.001,60479.0,60478.0,0.182349]
[1727946691309,0.002,60479.0,60478.0,0.182349]
[1727946692609,0.167346,60479.0,60478.0,0.017]
[1727946693097,0.002,60479.0,60478.0,0.182349]
[1727946696092,0.002,60479.0,60478.0,0.46853571]
[1727946696977,0.001,60479.0,60478.0,0.45153571]
[1727946697224,0.24828066,60489.0,60478.0,0.45153571]
[1727946697225,0.24828066,60489.0,60488.0,0.165322]
[1727946697671,0.24828066,60489.0,60478.0,0.122]
[1727946697888,0.165337,60483.0,60479.0,0.24828066]
[1727946698112,0.2839925,60488.0,60478.0,0.025]
[1727946698113,0.166346,60479.0,60478.0,0.025]
[1727946698368,0.166346,60479.0,60478.0,0.176349]
[1727946698369,0.001,60479.0,60478.0,0.176349]
[1727946698629,0.001,60479.0,60478.0,0.011]
[1727946698828,0.001,60479.0,60476.0,0.165353]
[1727946699086,0.330666,60484.0,60478.0,0.014]
[1727946699275,0.165342,60481.0,60478.0,0.014]
[1727946699490,0.330683,60481.0,60475.0,0.00163]
[1727946699762,0.165354,60476.0,60475.0,0.00163]
[1727946700833,0.165354,60476.0,60475.0,0.02663]
[1727946701256,0.41363466,60476.0,60475.0,0.02663]
[1727946701491,0.165354,60476.0,60475.0,0.02663]
[1727946701780,0.165354,60476.0,60475.0,0.01463]
[1727946701900,0.165354,60476.0,60475.0,0.00163]
[1727946702046,0.165354,60476.0,60475.0,0.00663]
[1727946702254,0.165354,60476.0,60475.0,0.01863]
[1727946702657,0.165354,60476.0,60475.0,0.00663]
[1727946703100,0.02592117,60480.0,60475.0,0.00963]
[1727946703351,0.02592117,60480.0,60475.0,0.174986]
[1727946703574,0.02592117,60480.0,60475.0,0.171986]
[1727946703819,0.19126517,60480.0,60475.0,0.00563]
[1727946704087,0.02592117,60480.0,60476.0,0.330708]
[1727946704337,0.02592117,60480.0,60476.0,0.165353]
[1727946704571,0.02592117,60480.0,60477.0,0.165351]
[1727946704854,0.02592117,60480.0,60475.0,0.33634]
[1727946705084,0.2839925,60483.0,60475.0,0.33234]
[1727946705337,0.330628,60491.0,60477.0,0.330702]
[1727946705338,0.53227316,60489.0,60477.0,0.330702]
[1727946705631,0.53227316,60489.0,60475.0,0.00263]
[1727946705632,0.16533,60485.0,60481.0,0.165339]
[1727946705858,0.53227316,60489.0,60484.0,0.165332]
[1727946706125,0.165323,60488.0,60484.0,0.165332]
[1727946706417,0.53227316,60489.0,60484.0,0.165331]
[1727946706418,0.2839925,60489.0,60484.0,0.165331]
[1727946706947,0.165328,60486.0,60482.0,0.165337]
[1727946707200,0.165323,60488.0,60484.0,0.165331]
[1727946707434,0.2839925,60489.0,60482.0,0.330675]
[1727946707435,0.165325,60487.0,60482.0,0.165336]
[1727946708585,0.2839925,60483.0,60475.0,0.00163]
[1727946708685,0.330665,60484.0,60482.0,0.001]
[1727946708945,0.4493275,60483.0,60482.0,0.001]
[1727946709194,0.4493275,60483.0,60475.0,0.24991066]
[1727946709195,0.165347,60479.0,60475.0,0.24991066]
[1727946709448,0.165347,60479.0,60475.0,0.41526566]
[1727946709690,0.16535,60478.0,60475.0,0.00163]
[1727946710170,0.330685,60481.0,60475.0,0.166986]
[1727946710412,0.165348,60479.0,60475.0,0.166986]
[1727946710718,0.2839925,60483.0,60476.0,0.24828066]
[1727946710976,0.165329,60486.0,60475.0,0.00163]
[1727946711213,0.165325,60487.0,60483.0,0.165334]
[1727946711457,0.24828066,60489.0,60481.0,0.330682]
[1727946711458,0.02592028,60482.0,60481.0,0.496021]
[1727946712768,0.25028066,60505.0,60479.0,0.24828066]
[1727946712995,0.24828066,60489.0,60487.0,0.165322]
[1727946713263,0.24828066,60489.0,60480.0,0.16318671]
[1727946713264,0.02673449,60494.0,60480.0,0.16318671]
[1727946713522,0.19203949,60494.0,60491.0,0.165312]
[1727946713758,0.02673449,60494.0,60491.0,0.165312]
[1727946714051,0.02673449,60494.0,60490.0,0.165314]
[1727946714052,0.165308,60493.0,60490.0,0.165314]
[1727946714675,0.165308,60493.0,60487.0,0.165322]
[1727946714676,0.2849925,60493.0,60487.0,0.165322]
[1727946714818,0.165316,60490.0,60487.0,0.165322]
[1727946715090,0.165316,60490.0,60482.0,0.330675]
[1727946715091,0.16533,60485.0,60484.0,0.00163]
[1727946715356,0.33065,60487.0,60484.0,0.00163]
[1727946715600,0.2839925,60488.0,60484.0,0.00163]
[1727946715875,0.16533,60485.0,60484.0,0.00163]
[1727946716373,0.165324,60488.0,60484.0,0.166962]
[1727946716619,0.330629,60491.0,60484.0,0.00163]
[1727946716859,0.16532,60489.0,60484.0,0.166962]
[1727946717089,0.165326,60487.0,60484.0,0.00563]
[1727946717347,0.16533,60485.0,60484.0,0.00563]
[1727946718340,0.16533,60485.0,60484.0,0.00163]
[1727946718559,0.16533,60485.0,60484.0,0.00463]
[1727946719094,0.16533,60485.0,60484.0,0.00363]
[1727946719358,0.19125181,60485.0,60484.0,0.00363]
[1727946719601,0.16533,60485.0,60484.0,0.00363]
[1727946719870,0.16533,60485.0,60484.0,0.00163]
[1727946720438,0.16533,60485.0,60484.0,0.00263]
[1727946721138,0.16533,60485.0,60484.0,0.00163]
[1727946721370,0.16533,60485.0,60484.0,0.00463]
[1727946721631,0.16533,60485.0,60484.0,0.00163]
[1727946721915,0.16533,60485.0,60484.0,0.00463]
[1727946722206,0.2839925,60488.0,60484.0,0.00163]
[1727946722483,0.02592037,60488.0,60484.0,0.00163]
[1727946722720,0.000817,60495.0,60485.0,0.16318671]
[1727946722986,0.000817,60495.0,60493.0,0.165308]
[1727946723263,0.000817,60495.0,60493.0,0.32849471]
[1727946723486,0.000817,60495.0,60493.0,0.37805072]
[1727946723678,0.000817,60495.0,60493.0,0.32849471]
[1727946723907,0.000817,60495.0,60493.0,0.37805072]
[1727946724370,0.000817,60495.0,60493.0,0.32849471]
[1727946725140,0.000817,60495.0,60490.0,0.27360167]
[1727946725358,0.000817,60495.0,60493.0,0.165308]
[1727946725631,0.000817,60495.0,60493.0,0.32849471]
[1727946726376,0.000817,60495.0,60493.0,0.34249471]
[1727946726796,0.000817,60495.0,60493.0,0.35649471]
[1727946727256,0.000817,60495.0,60493.0,0.34249471]
[1727946727482,0.000817,60495.0,60493.0,0.34749471]
[1727946727708,0.000817,60495.0,60493.0,0.32849471]
[1727946728192,0.000817,60495.0,60493.0,0.35449471]
[1727946728656,0.000817,60495.0,60493.0,0.34249471]
[1727946729339,0.000817,60495.0,60493.0,0.32849471]
[1727946729655,0.000817,60495.0,60493.0,0.51498632]
[1727946730063,0.000817,60495.0,60493.0,0.74948721]
[1727946730301,0.000817,60495.0,60493.0,0.76548721]
[1727946730539,0.000817,60495.0,60493.0,0.86237574]
[1727946731456,0.000817,60495.0,60493.0,0.87637574]
[1727946731678,0.000817,60495.0,60493.0,0.85163056]
[1727946732379,0.000817,60495.0,60493.0,0.83763056]
[1727946732636,0.000817,60495.0,60493.0,0.85163056]
[1727946733072,0.000817,60495.0,60493.0,0.85160819]
[1727946733532,0.000817,60495.0,60493.0,0.77748721]
[1727946733537,0.000817,60495.0,60493.0,0.78448721]
[1727946733758,0.000817,60495.0,60493.0,0.68765046]
[1727946734238,0.000817,60495.0,60493.0,0.76177144]
[1727946734706,0.000817,60495.0,60493.0,0.68965046]
[1727946734990,0.000817,60495.0,60493.0,0.76177144]
[1727946735240,0.000817,60495.0,60493.0,0.77069734]
[1727946735474,0.000817,60495.0,60493.0,0.72080046]
[1727946735695,0.000817,60495.0,60493.0,0.70680046]
[1727946736153,0.24828066,60513.0,60507.0,0.330537]
[1727946736482,0.24828066,60513.0,60512.0,0.265256]
[1727946736618,0.24828066,60513.0,60512.0,0.42844271]
[1727946736836,0.001017,60519.0,60512.0,0.42844271]
[1727946736837,0.001017,60519.0,60518.0,0.16524]
[1727946737053,0.001017,60519.0,60518.0,0.32842671]
[1727946737310,0.001017,60519.0,60518.0,0.64558246]
[1727946737563,0.001017,60519.0,60518.0,0.67873246]
[1727946738017,0.001017,60519.0,60518.0,0.69273246]
[1727946738246,0.001017,60519.0,60518.0,0.73052147]
[1727946738478,0.001017,60519.0,60518.0,0.68073246]
[1727946738706,0.001017,60519.0,60518.0,0.71852147]
[1727946738970,0.001017,60519.0,60518.0,0.80755349]
[1727946739215,0.001017,60519.0,60518.0,0.66158246]
[1727946739413,0.001017,60519.0,60518.0,0.69273246]
[1727946739651,0.001017,60519.0,60518.0,0.65958246]
[1727946739929,0.001017,60519.0,60518.0,0.45642671]
[1727946740176,0.001017,60519.0,60518.0,0.35642671]
[1727946740415,0.001017,60519.0,60518.0,0.0224603]
[1727946740640,0.001017,60519.0,60518.0,0.19324]
[1727946741090,0.001017,60519.0,60518.0,0.17924]
[1727946741327,0.001017,60519.0,60518.0,0.32842671]
[1727946741566,0.001017,60519.0,60518.0,0.45642671]
[1727946741793,0.001017,60519.0,60518.0,0.44242671]
[1727946742031,0.001017,60519.0,60518.0,0.42842671]
[1727946742267,0.001017,60519.0,60518.0,0.65858246]
[1727946743177,0.001017,60519.0,60518.0,0.67158246]
[1727946743397,0.001017,60519.0,60518.0,0.46942671]
[1727946743627,0.001017,60519.0,60518.0,0.47042671]
[1727946743923,0.001017,60519.0,60518.0,0.44242671]
[1727946744414,0.001017,60519.0,60518.0,0.46542671]
[1727946744672,0.001017,60519.0,60518.0,0.65458246]
[1727946744908,0.001017,60519.0,60518.0,0.67358246]
[1727946745133,0.001017,60519.0,60518.0,0.47042671]
[1727946745420,0.001017,60519.0,60518.0,0.48442671]
[1727946745897,0.001017,60519.0,60518.0,0.45642671]
[1727946746097,0.19017275,60519.0,60518.0,0.014]
[1727946746321,0.001017,60519.0,60518.0,0.17924]
[1727946746603,0.001017,60519.0,60518.0,0.028]
[1727946746836,0.166254,60519.0,60518.0,0.014]
[1727946747068,0.166254,60519.0,60518.0,0.028]
[1727946747318,0.166254,60519.0,60509.0,0.24828066]
[1727946747319,0.001017,60519.0,60509.0,0.24828066]
[1727946747534,0.166254,60519.0,60518.0,0.027]
[1727946747780,0.166254,60519.0,60518.0,0.014]
[1727946748023,0.166254,60519.0,60498.0,0.330587]
[1727946748024,0.001017,60519.0,60498.0,0.330587]
[1727946748244,0.165256,60512.0,60511.0,0.24828066]
[1727946748490,0.02590697,60515.0,60506.0,0.330541]
[1727946748706,0.165251,60514.0,60509.0,0.165262]
[1727946748964,0.02590697,60515.0,60511.0,0.330515]
[1727946749178,0.02590697,60515.0,60514.0,0.165251]
[1727946749855,0.02590697,60515.0,60512.0,0.165254]
[1727946750082,0.02590697,60515.0,60513.0,0.330507]
[1727946750316,0.02590697,60515.0,60514.0,0.165251]
[1727946750572,0.001017,60519.0,60518.0,0.16524]
[1727946750812,0.001017,60519.0,60518.0,0.32842671]
[1727946751048,0.001017,60519.0,60518.0,0.42842671]
[1727946751286,0.002017,60519.0,60518.0,0.42842671]
[1727946751749,0.001017,60519.0,60518.0,0.42842671]
[1727946751977,0.001017,60519.0,60518.0,0.43642671]
[1727946752717,0.001017,60519.0,60518.0,0.27324]
[1727946753211,0.001017,60519.0,60518.0,0.28124]
[1727946753890,0.166254,60519.0,60518.0,0.016]
[1727946754168,0.001017,60519.0,60518.0,0.016]
[1727946754414,0.001017,60519.0,60518.0,0.18124]
[1727946755554,0.001017,60519.0,60518.0,0.34442671]
[1727946756693,0.166254,60519.0,60518.0,0.016]
[1727946757599,0.001017,60519.0,60518.0,0.016]
[1727946758514,0.001017,60519.0,60518.0,0.18124]
[1727946758761,0.001017,60519.0,60518.0,0.016]
[1727946758993,0.001017,60519.0,60518.0,0.18124]
[1727946759225,0.001017,60519.0,60518.0,0.34442671]
[1727946759480,0.001017,60519.0,60518.0,0.44442671]
[1727946764565,0.001017,60519.0,60518.0,0.46742671]
[1727946765707,0.001017,60519.0,60518.0,0.51662622]
[1727946765954,0.001017,60519.0,60518.0,0.45142671]
[1727946766406,0.001017,60519.0,60518.0,0.52862622]
[1727946766630,0.001017,60519.0,60518.0,0.47942671]
[1727946767557,0.001017,60519.0,60518.0,0.45642671]
[1727946769126,0.001017,60519.0,60518.0,0.028]
[1727946769632,0.001017,60519.0,60518.0,0.45642671]
[1727946771938,0.001017,60519.0,60518.0,0.028]
[1727946772483,0.35537324,60519.0,60518.0,0.028]
[1727946773941,0.19013624,60519.0,60518.0,0.028]
[1727946774123,0.001017,60519.0,60518.0,0.35642671]
[1727946774565,0.001017,60519.0,60518.0,0.50583929]
[1727946774856,0.001017,60519.0,60518.0,0.45642671]
[1727946775067,0.001017,60519.0,60518.0,0.55525187]
[1727946775344,0.001017,60519.0,60518.0,0.45642671]
[1727946775557,0.001017,60519.0,60518.0,0.5305626]
[1727946775777,0.001017,60519.0,60518.0,0.45642671]
[1727946776224,0.001017,60519.0,60518.0,0.53057845]
[1727946776445,0.001017,60519.0,60518.0,0.53903959]
[1727946777628,0.001017,60519.0,60518.0,0.46488738]
[1727946777859,0.001017,60519.0,60518.0,0.51433416]
[1727946778553,0.001017,60519.0,60518.0,0.46488738]
[1727946778786,0.001017,60519.0,60518.0,0.51433416]
[1727946779766,0.001017,60519.0,60518.0,0.5143976]
[1727946780771,0.001017,60519.0,60518.0,0.53903959]
[1727946781013,0.001017,60519.0,60518.0,0.46488738]
[1727946781522,0.001017,60519.0,60518.0,0.51440149]
[1727946781782,0.001017,60519.0,60518.0,0.50040149]
[1727946782319,0.001017,60519.0,60518.0,0.48639941]
[1727946782611,0.001017,60519.0,60518.0,0.46488738]
[1727946782806,0.001017,60519.0,60518.0,0.52515542]
[1727946783024,0.001017,60519.0,60518.0,0.27370067]
[1727946783253,0.001017,60519.0,60518.0,0.33721539]
[1727946784170,0.001017,60519.0,60518.0,0.52515542]
[1727946784622,0.001017,60519.0,60518.0,0.46488738]
[1727946785016,0.001017,60519.0,60518.0,0.53917584]
[1727946785331,0.001017,60519.0,60518.0,0.75129508]
[1727946785546,0.001017,60519.0,60518.0,0.67700662]
[1727946785970,0.001017,60519.0,60518.0,0.82549277]
[1727946786470,0.001017,60519.0,60518.0,0.63637353]
[1727946786701,0.001017,60519.0,60518.0,0.48788738]
[1727946789274,0.001017,60519.0,60518.0,0.47388738]
[1727946789487,0.001017,60519.0,60518.0,0.5745934]
[1727946789713,0.001017,60519.0,60518.0,0.58859857]
[1727946789962,0.19013624,60519.0,60518.0,0.2269988]
[1727946790195,0.35537324,60519.0,60518.0,0.028]
[1727946790441,0.19013624,60519.0,60518.0,0.028]
[1727946790661,0.19013624,60519.0,60518.0,0.014]
[1727946790662,0.35537324,60519.0,60518.0,0.014]
[1727946791150,0.35537324,60519.0,60508.0,0.24828066]
[1727946791151,0.35332295,60519.0,60510.0,0.04950655]
[1727946791402,0.35437824,60511.0,60510.0,0.24828066]
[1727946791824,0.35437824,60511.0,60501.0,0.32253724]
[1727946791825,0.165283,60502.0,60501.0,0.24828066]
[1727946792123,0.18233611,60502.0,60501.0,0.24828066]
[1727946792351,0.18911924,60504.0,60500.0,0.5]
[1727946792352,0.165286,60501.0,60500.0,0.5]
[1727946792582,0.01703781,60502.0,60500.0,0.5]
[1727946792808,0.01703781,60501.0,60500.0,0.5]
[1727946793286,0.01703781,60501.0,60500.0,0.665289]
[1727946793738,0.18232381,60501.0,60500.0,0.5]
[1727946794338,0.01703781,60501.0,60500.0,0.5]
[1727946794450,0.01703781,60501.0,60500.0,0.995867]
[1727946794451,0.01714151,60501.0,60500.0,0.995867]
[1727946794672,0.01714151,60501.0,60500.0,1.15905371]
[1727946794897,0.01714151,60501.0,60500.0,1.18505371]
[1727946795096,0.41354466,60509.0,60502.0,0.330563]
[1727946795097,0.24828066,60509.0,60502.0,0.330563]
[1727946795367,0.24828066,60509.0,60506.0,0.165272]
[1727946795599,0.165262,60510.0,60506.0,0.165272]
[1727946795830,0.18911924,60512.0,60501.0,0.24828066]
[1727946796024,0.165264,60510.0,60504.0,0.165276]
[1727946796277,0.165264,60510.0,60503.0,0.330557]
[1727946796504,0.165264,60510.0,60501.0,0.41146737]
[1727946796505,0.165259,60511.0,60501.0,0.41146737]
[1727946796744,0.165252,60514.0,60504.0,0.330555]
[1727946796975,0.165247,60516.0,60511.0,0.165259]
[1727946797415,0.001017,60519.0,60508.0,0.24913481]
[1727946797641,0.001017,60519.0,60518.0,0.16524]
[1727946799026,0.002017,60519.0,60518.0,0.16524]
[1727946799268,0.004017,60519.0,60518.0,0.16524]
[1727946799500,0.003017,60519.0,60518.0,0.16524]
[1727946799724,0.004017,60519.0,60518.0,0.16524]
[1727946799951,0.004017,60519.0,60515.0,0.660987]
[1727946799952,0.004017,60519.0,60511.0,0.16318671]
[1727946800181,0.004017,60519.0,60494.0,0.4723]
[1727946800182,0.18911924,60515.0,60505.0,0.04941609]
[1727946800370,0.33048,60518.0,60509.0,0.24828066]
[1727946800371,0.165261,60510.0,60509.0,0.24828066]
[1727946800656,0.18911924,60511.0,60505.0,0.17335145]
[1727946800657,0.165265,60509.0,60506.0,0.1]
[1727946800964,0.33048,60518.0,60505.0,0.17335145]
[1727946800965,0.02590739,60512.0,60508.0,0.24828066]
[1727946801127,0.02590739,60512.0,60508.0,0.16318671]
[1727946801876,0.0169014,60520.0,60511.0,0.1]
[1727946802075,0.0169014,60520.0,60514.0,0.330497]
[1727946802076,0.24929766,60519.0,60514.0,0.330497]
[1727946802301,0.24929766,60519.0,60515.0,0.16318671]
[1727946802519,0.24929766,60519.0,60515.0,0.32843371]
[1727946802520,0.001017,60519.0,60515.0,0.32843371]
[1727946802738,0.001017,60519.0,60515.0,0.32843271]
[1727946803521,0.28483551,60519.0,60508.0,0.008]
[1727946803756,0.28483551,60519.0,60511.0,0.165259]
[1727946803757,0.16525,60515.0,60511.0,0.165259]
[1727946803978,0.28483551,60519.0,60511.0,0.009]
[1727946803979,0.165256,60512.0,60511.0,0.009]
[1727946804214,0.330495,60516.0,60508.0,0.165266]
[1727946804215,0.165253,60514.0,60508.0,0.165266]
[1727946804464,0.02590673,60515.0,60508.0,0.165266]
[1727946804465,0.165254,60513.0,60508.0,0.165266]
[1727946804715,0.165254,60513.0,60509.0,0.165264]
[1727946805215,0.165254,60513.0,60511.0,0.014]
[1727946805743,0.165254,60513.0,60511.0,0.026]
[1727946805989,0.165254,60513.0,60511.0,0.012]
[1727946807170,0.165254,60513.0,60509.0,0.165264]
[1727946807405,0.165246,60516.0,60511.0,0.165257]
[1727946807619,0.165251,60514.0,60509.0,0.179263]
[1727946807879,0.330487,60517.0,60511.0,0.014]
[1727946807880,0.165257,60512.0,60511.0,0.014]
[1727946808344,0.35640477,60515.0,60511.0,0.028]
[1727946808593,0.165256,60512.0,60511.0,0.014]
[1727946808815,0.330515,60512.0,60506.0,0.1]
[1727946809049,0.32844271,60512.0,60511.0,0.014]
[1727946809271,0.165256,60512.0,60511.0,0.014]
[1727946809768,0.22233563,60512.0,60511.0,0.014]
[1727946810181,0.50815414,60512.0,60511.0,0.014]
[1727946810509,0.165281,60503.0,60502.0,0.24828066]
[1727946810729,0.44909951,60503.0,60502.0,0.24828066]
[1727946810948,0.28381851,60503.0,60499.0,0.001634]
[1727946811139,0.165286,60501.0,60499.0,0.001634]
[1727946813681,0.165286,60501.0,60500.0,0.515]
[1727946814104,0.19119746,60501.0,60500.0,0.515]
[1727946814971,0.165286,60501.0,60500.0,0.515]
[1727946816630,0.165286,60501.0,60500.0,0.508]
[1727946817144,0.166286,60501.0,60500.0,0.5]
[1727946817357,0.165286,60501.0,60500.0,0.5]
[1727946817578,0.166286,60501.0,60500.0,0.5]
[1727946818282,0.167286,60501.0,60500.0,0.5]
[1727946818519,0.35438519,60501.0,60500.0,0.5]
[1727946818971,0.19119848,60501.0,60500.0,0.5]
[1727946819181,0.02591248,60501.0,60500.0,0.5]
[1727946820086,0.02591248,60501.0,60500.0,0.666289]
[1727946820340,0.001817,60501.0,60500.0,0.666289]
[1727946820610,0.001817,60501.0,60500.0,0.82847571]
[1727946821106,0.001817,60501.0,60500.0,0.92847571]
[1727946821447,0.000817,60501.0,60500.0,0.92847571]
[1727946821449,0.001817,60501.0,60500.0,0.92847571]
[1727946822667,0.000817,60501.0,60500.0,1.14066507]
[1727946822889,0.000817,60501.0,60500.0,1.15466507]
[1727946823152,0.000817,60501.0,60500.0,1.16298241]
[1727946823352,0.000817,60501.0,60500.0,1.17698241]
[1727946823594,0.000817,60501.0,60500.0,1.46341307]
[1727946823802,0.24828066,60518.0,60517.0,0.265242]
[1727946824025,0.24828066,60518.0,60517.0,0.45142871]
[1727946824483,0.001017,60519.0,60518.0,0.28824]
[1727946824685,0.001017,60519.0,60518.0,0.45142671]
[1727946826821,0.001017,60519.0,60518.0,0.47042671]
[1727946827568,0.001017,60519.0,60518.0,0.48442671]
[1727946828011,0.001017,60519.0,60518.0,0.47042671]
[1727946828520,0.001017,60519.0,60518.0,0.48442671]
[1727946830092,0.001017,60519.0,60518.0,0.52573379]
[1727946830306,0.001017,60519.0,60518.0,0.51173379]
[1727946830791,0.001017,60519.0,60518.0,0.47858379]
[1727946831027,0.001017,60519.0,60518.0,0.51385979]
[1727946831251,1e-08,60519.0,60518.0,0.51385979]
[1727946831487,1e-08,60519.0,60518.0,0.47858379]
[1727946831719,1e-08,60519.0,60518.0,0.62428579]
[1727946831919,0.24828066,60537.0,60533.0,0.028]
[1727946832152,0.24828066,60537.0,60536.0,0.26519]
[1727946832374,0.24828066,60537.0,60536.0,0.42837671]
[1727946832591,0.000816,60538.0,60537.0,0.265188]
[1727946832815,0.000816,60538.0,60537.0,0.42837471]
[1727946833562,0.000816,60538.0,60537.0,0.265188]
[1727946833785,0.000816,60538.0,60537.0,0.279188]
[1727946834035,0.000816,60538.0,60537.0,0.44237471]
[1727946834718,0.000816,60538.0,60537.0,0.45637471]
[1727946835262,0.000816,60538.0,60537.0,0.44237471]
[1727946835466,0.000816,60538.0,60537.0,0.279188]